fUST/lending_fUST_20251126
["ID","MTS","AMOUNT","RATE_DAILY","PERIOD"]
[394930929,1764153051937,-300.0,0.00016473,2]
[394930930,1764153051946,-290.39862941,0.00016576,2]
[394930931,1764153051955,-2500.0,0.00016664,2]
[394930932,1764153051964,-2500.0,0.00016664,2]
[394930933,1764153051973,-2395.44436451,0.00016664,2]
[394930934,1764153051982,-2500.0,0.00016664,2]
[394930935,1764153051991,-1612.92656333,0.00016664,2]
[394930936,1764153052000,-2500.0,0.00016664,2]
[394930937,1764153052009,-1984.03486504,0.00016664,2]
[394930938,1764153052018,-707.19660037,0.00016664,2]
[394930939,1764153052027,-599.90564448,0.00016664,2]
[394930940,1764153052037,-2500.0,0.00016664,2]
[394930941,1764153052047,-1056.17772392,0.00016664,2]
[394930942,1764153052056,-2500.0,0.00016664,2]
[394930943,1764153052065,-2500.0,0.00016664,2]
[394930944,1764153052075,-2500.0,0.00016664,2]
[394930945,1764153052085,-2500.0,0.00016664,2]
[394930946,1764153052094,-1756.8303839,0.00016664,2]
[394930947,1764153052103,-2500.0,0.00016664,2]
[394930948,1764153052112,-1482.44372341,0.00016664,2]
[394930949,1764153052122,-2500.0,0.00016664,2]
[394930950,1764153052132,-2500.0,0.00016664,2]
[394930951,1764153052141,-957.87735001,0.00016664,2]
[394930952,1764153052151,-1791.09560258,0.00016664,2]
[394930953,1764153052161,-2500.0,0.00016664,2]
[394930954,1764153052171,-3333.0,0.00016712,2]
[394930955,1764153052180,-175.67,0.00016785,2]
[394930956,1764153052190,-169.2287534,0.00016827,2]
[394930957,1764153052200,-306.11585,0.00016827,2]
[394930958,1764153052209,-595.6940495,0.00016827,2]
[394930959,1764153052218,-298.4570443,0.00016827,2]
[394930960,1764153052227,-192.027293,0.00016827,2]
[394930961,1764153052236,-595.6940495,0.00016827,2]
[394930962,1764153052245,-155.0147088,0.00016827,2]
[394930963,1764153052255,-301.5263242,0.00016835,2]
[394930964,1764153052263,-192.027293,0.00016835,2]
[394930965,1764153052273,-192.027293,0.00016835,2]
[394930966,1764153052283,-301.5263242,0.00016835,2]
[394930967,1764153052294,-301.5263242,0.00016835,2]
[394930968,1764153052303,-192.027293,0.00016835,2]
[394930969,1764153052313,-301.5263242,0.00016835,2]
[394930970,1764153052324,-2387.16930363,0.0001696,2]
[394930971,1764153052334,-3500.0,0.0001696,2]
[394930972,1764153052344,-3500.0,0.0001696,2]
[394930973,1764153052353,-1526.82640455,0.00016964,2]
[394930974,1764153052363,-2500.0,0.00016964,2]
[394930975,1764153052373,-398.07703259,0.00016964,2]
[394930976,1764153052382,-760.0,0.00016986,2]
[394930977,1764153052391,-3500.0,0.00016986,2]
[394930978,1764153052401,-600.0,0.00016986,2]
[394930979,1764153052410,-500.12266662,0.00017,2]
[394930980,1764153052419,-500.0,0.00017,2]
[394930981,1764153052428,-500.0,0.00017,2]
[394930982,1764153052442,-600.0,0.00017021,2]
[394930983,1764153052451,-150.0,0.0001706,2]
[394930984,1764153052460,-301.1433787,0.00017124,2]
[394930985,1764153052470,-1635.12278714,0.00017212,2]
[394930986,1764153052481,-3000.0,0.00017212,2]
[394930987,1764153052491,-1608.24477434,0.00017212,2]
[394930988,1764153052500,-3000.0,0.00017212,2]
[394930989,1764153052509,-1675.36425223,0.00017212,2]
[394930990,1764153052519,-3000.0,0.00017212,2]
[394930991,1764153052529,-3000.0,0.00017212,2]
[394930992,1764153052538,-3000.0,0.00017212,2]
[394930993,1764153052547,-2504.87600832,0.00017212,2]
[394930994,1764153052557,-1189.76100557,0.00017212,2]
[394930995,1764153052566,-695.81880452,0.00017212,2]
[394930996,1764153052576,-771.12981152,0.00017212,2]
[394930997,1764153052585,-3000.0,0.00017212,2]
[394930998,1764153052594,-3000.0,0.0001726,2]
[394930999,1764153052603,-2400.0,0.0001726,2]
[394931000,1764153052612,-3333.0,0.0001726,2]
[394931001,1764153052622,-793.0,0.00017267,2]
[394931002,1764153052631,-743.92214628,0.00017389,2]
[394931003,1764153052640,-264.82952127,0.00017397,2]
[394931004,1764153052650,-264.82952127,0.00017479,2]
[394931005,1764153052659,-857.61162741,0.00017508,2]
[394931006,1764153053084,-333.0,6.051e-05,2]
[394931007,1764153053094,-757.48,0.00012329,2]
[394931008,1764153053104,-500.0,0.00013699,2]
[394931009,1764153053113,-500.0,0.00013699,2]
[394931010,1764153053123,-500.0,0.00013699,2]
[394931011,1764153053132,-500.0,0.00013699,2]
[394931012,1764153053142,-500.0,0.00013699,2]
[394931013,1764153053151,-500.0,0.00013699,2]
[394931014,1764153053160,-500.0,0.00013699,2]
[394931015,1764153053170,-500.0,0.00013699,2]
[394931016,1764153053179,-500.0,0.00013699,2]
[394931017,1764153053189,-500.0,0.00013699,2]
[394931018,1764153053199,-3142.38837259,0.00017508,2]
[394931019,1764153053209,-2502.79014211,0.00017508,2]
[394931020,1764153053292,-500.0,0.00013699,2]
[394931021,1764153053302,-500.0,0.00013699,2]
[394931022,1764153053311,-155.4,0.000175,2]
[394931023,1764153053354,-500.0,0.00013699,2]
[394931024,1764153053364,-963.72783976,0.000175,2]
[394931095,1764154232626,-500.0,5.474e-05,2]
[394931117,1764154238298,-551.62337864,5.473e-05,2]
[394931118,1764154238307,-960.10382719,5.473e-05,2]
[394931119,1764154238317,-204.27279417,5.473e-05,2]
[394931150,1764154240607,-755.83103302,5.473e-05,2]
[394931151,1764154240617,-145.49362789,5.473e-05,2]
[394931152,1764154240661,-504.43754967,5.473e-05,2]
[394931153,1764154240670,-960.10382719,5.473e-05,2]
[394931154,1764154240679,-960.10382719,5.473e-05,2]
[394931155,1764154240690,-960.10382719,5.473e-05,2]
[394931156,1764154240699,-720.04225979,5.473e-05,2]
[394931157,1764154240717,-240.0615674,5.473e-05,2]
[394931158,1764154240726,-960.10382719,5.473e-05,2]
[394931159,1764154240736,-960.10382719,5.473e-05,2]
[394931160,1764154240745,-960.10382719,5.473e-05,2]
[394931161,1764154240754,-960.10382719,5.473e-05,2]
[394931162,1764154240774,-960.10382719,5.473e-05,2]
[394931163,1764154240784,-960.10382719,5.473e-05,2]
[394931164,1764154240794,-960.10382719,5.473e-05,2]
[394931165,1764154240803,-960.10382719,5.473e-05,2]
[394931166,1764154240813,-960.10382719,5.473e-05,2]
[394931167,1764154240823,-960.10382719,5.473e-05,2]
[394931168,1764154240836,-960.10382719,5.473e-05,2]
[394931169,1764154240845,-960.10382719,5.473e-05,2]
[394931170,1764154240856,-960.10382719,5.473e-05,2]
[394931171,1764154240867,-960.10382719,5.473e-05,2]
[394931172,1764154240878,-960.10382719,5.473e-05,2]
[394931173,1764154240887,-960.10382719,5.473e-05,2]
[394931174,1764154240896,-960.10382719,5.473e-05,2]
[394931175,1764154240906,-960.10382719,5.473e-05,2]
[394931176,1764154240917,-960.10382719,5.473e-05,2]
[394931177,1764154240927,-960.10382719,5.473e-05,2]
[394931178,1764154240937,-960.10382719,5.473e-05,2]
[394931179,1764154240946,-960.10382719,5.473e-05,2]
[394931180,1764154240955,-960.10382719,5.473e-05,2]
[394931181,1764154240964,-960.10382719,5.473e-05,2]
[394931182,1764154240974,-960.10382719,5.473e-05,2]
[394931183,1764154240984,-960.10382719,5.473e-05,2]
[394931184,1764154240994,-960.10382719,5.473e-05,2]
[394931185,1764154241003,-960.10382719,5.473e-05,2]
[394931186,1764154241011,-960.10382719,5.473e-05,2]
[394931187,1764154241020,-960.10382719,5.473e-05,2]
[394931188,1764154241030,-960.10382719,5.473e-05,2]
[394931189,1764154241040,-960.10382719,5.473e-05,2]
[394931190,1764154241050,-960.10382719,5.473e-05,2]
[394931191,1764154241059,-960.10382719,5.473e-05,2]
[394931192,1764154241068,-960.10382719,5.473e-05,2]
[394931193,1764154241079,-960.10382719,5.473e-05,2]
[394931194,1764154241088,-960.10382719,5.473e-05,2]
[394931195,1764154241099,-960.10382719,5.473e-05,2]
[394931196,1764154241108,-960.10382719,5.473e-05,2]
[394931197,1764154241119,-960.10382719,5.473e-05,2]
[394931198,1764154241128,-960.10382719,5.473e-05,2]
[394931199,1764154241137,-960.10382719,5.473e-05,2]
[394931200,1764154241147,-326.09953027,5.473e-05,2]
[394931207,1764154244634,-634.00429692,5.473e-05,2]
[394931208,1764154244644,-960.10382719,5.473e-05,2]
[394931209,1764154244654,-960.10382719,5.473e-05,2]
[394931210,1764154244663,-960.10382719,5.473e-05,2]
[394931211,1764154244672,-960.10382719,5.473e-05,2]
[394931212,1764154244685,-440.57687673,5.473e-05,2]
[394931213,1764154245479,-519.52695046,5.473e-05,2]
[394931214,1764154245488,-786.07088824,5.473e-05,2]
[394931251,1764155432356,-1420.2,5.144e-05,2]
[394931298,1764155440744,-21337.98642241,5.144e-05,2]
[394931299,1764155440755,-500.0,5.173e-05,2]
[394931300,1764155440766,-500.0,5.173e-05,2]
[394931301,1764155440776,-513.26098535,5.173e-05,2]
[394931302,1764155440786,-500.0,5.196e-05,2]
[394931303,1764155440797,-500.0,5.196e-05,2]
[394931304,1764155440806,-408.12814699,5.196e-05,2]
[394931305,1764155440816,-500.0,5.196e-05,2]
[394931306,1764155440825,-500.0,5.196e-05,2]
[394931307,1764155440835,-234.5071949,5.196e-05,2]
[394931308,1764155440844,-500.0,5.196e-05,2]
[394931309,1764155440853,-86.87894029,5.196e-05,2]
[394931310,1764155440864,-413.12105971,5.196e-05,2]
[394931311,1764155440873,-500.0,5.196e-05,2]
[394931312,1764155440882,-500.0,5.196e-05,2]
[394931313,1764155440891,-500.0,5.196e-05,2]
[394931314,1764155440900,-500.0,5.196e-05,2]
[394931315,1764155440909,-500.0,5.196e-05,2]
[394931316,1764155441123,-416.76590998,5.196e-05,2]
[394931317,1764155441133,-500.0,5.196e-05,2]
[394931318,1764155441144,-500.0,5.196e-05,2]
[394931319,1764155441153,-500.0,5.196e-05,2]
[394931320,1764155441163,-500.0,5.196e-05,2]
[394931321,1764155441172,-500.0,5.196e-05,2]
[394931322,1764155441181,-500.0,5.196e-05,2]
[394931323,1764155441192,-500.0,5.196e-05,2]
[394931324,1764155441207,-500.0,5.196e-05,2]
[394931325,1764155441218,-500.0,5.196e-05,2]
[394931326,1764155441227,-500.0,5.196e-05,2]
[394931327,1764155441235,-500.0,5.196e-05,2]
[394931328,1764155441247,-500.0,5.196e-05,2]
[394931329,1764155441256,-500.0,5.196e-05,2]
[394931330,1764155441265,-500.0,5.196e-05,2]
[394931331,1764155441278,-500.0,5.196e-05,2]
[394931332,1764155441287,-500.0,5.196e-05,2]
[394931333,1764155441296,-500.0,5.196e-05,2]
[394931334,1764155441307,-414.68578543,5.196e-05,2]
[394931335,1764155441316,-1203.25641809,5.196e-05,2]
[394931336,1764155441325,-1203.25641809,5.196e-05,2]
[394931337,1764155441334,-1203.25641809,5.196e-05,2]
[394931338,1764155441344,-1203.25641809,5.196e-05,2]
[394931339,1764155441352,-1203.25641809,5.196e-05,2]
[394931340,1764155441362,-1203.25641809,5.196e-05,2]
[394931341,1764155441371,-1203.25641809,5.196e-05,2]
[394931342,1764155441380,-1203.25641809,5.196e-05,2]
[394931343,1764155441389,-1203.25641809,5.196e-05,2]
[394931344,1764155441398,-1203.25641809,5.196e-05,2]
[394931345,1764155441407,-1203.25641809,5.196e-05,2]
[394931346,1764155441416,-1203.25641809,5.196e-05,2]
[394931347,1764155441425,-1203.25641809,5.196e-05,2]
[394931348,1764155441433,-1203.25641809,5.196e-05,2]
[394931349,1764155441442,-1203.25641809,5.196e-05,2]
[394931350,1764155441451,-1203.25641809,5.196e-05,2]
[394931351,1764155441460,-1203.25641809,5.196e-05,2]
[394931352,1764155441468,-1203.25641809,5.196e-05,2]
[394931353,1764155441477,-1203.25641809,5.196e-05,2]
[394931354,1764155441486,-1203.25641809,5.196e-05,2]
[394931355,1764155441495,-1203.25641809,5.196e-05,2]
[394931356,1764155441504,-1203.25641809,5.196e-05,2]
[394931357,1764155441520,-1203.25641809,5.196e-05,2]
[394931358,1764155441532,-1203.25641809,5.196e-05,2]
[394931359,1764155441541,-1203.25641809,5.196e-05,2]
[394931360,1764155441551,-1203.25641809,5.196e-05,2]
[394931361,1764155441561,-1203.25641809,5.196e-05,2]
[394931362,1764155441571,-1203.25641809,5.196e-05,2]
[394931363,1764155441580,-1203.25641809,5.196e-05,2]
[394931364,1764155441590,-1203.25641809,5.196e-05,2]
[394931365,1764155441600,-1203.25641809,5.196e-05,2]
[394931366,1764155441610,-1203.25641809,5.196e-05,2]
[394931367,1764155441620,-1203.25641809,5.196e-05,2]
[394931368,1764155441630,-1203.25641809,5.196e-05,2]
[394931369,1764155441639,-1203.25641809,5.196e-05,2]
[394931370,1764155441651,-1203.25641809,5.196e-05,2]
[394931371,1764155441660,-1203.25641809,5.196e-05,2]
[394931372,1764155441670,-1203.25641809,5.196e-05,2]
[394931373,1764155441680,-1203.25641809,5.196e-05,2]
[394931374,1764155441690,-1203.25641809,5.196e-05,2]
[394931375,1764155441700,-1203.25641809,5.196e-05,2]
[394931376,1764155441709,-1203.25641809,5.196e-05,2]
[394931377,1764155441719,-1203.25641809,5.196e-05,2]
[394931378,1764155441729,-1203.25641809,5.196e-05,2]
[394931379,1764155441739,-1203.25641809,5.196e-05,2]
[394931380,1764155441748,-1203.25641809,5.196e-05,2]
[394931381,1764155441758,-1203.25641809,5.196e-05,2]
[394931382,1764155441767,-1203.25641809,5.196e-05,2]
[394931383,1764155441777,-1203.25641809,5.196e-05,2]
[394931384,1764155441786,-1150.67714605,5.196e-05,2]
[394931385,1764155441796,-1150.67714605,5.196e-05,2]
[394931386,1764155441805,-1150.67714605,5.196e-05,2]
[394931387,1764155441815,-1150.67714605,5.196e-05,2]
[394931388,1764155441824,-1150.67714605,5.196e-05,2]
[394931389,1764155441833,-1150.67714605,5.196e-05,2]
[394931390,1764155441843,-1150.67714605,5.196e-05,2]
[394931391,1764155441852,-1150.67714605,5.196e-05,2]
[394931392,1764155441861,-1150.67714605,5.196e-05,2]
[394931393,1764155441870,-1150.67714605,5.196e-05,2]
[394931394,1764155441879,-1150.67714605,5.196e-05,2]
[394931395,1764155441890,-1150.67714605,5.196e-05,2]
[394931396,1764155441899,-1150.67714605,5.196e-05,2]
[394931397,1764155441910,-1150.67714605,5.196e-05,2]
[394931398,1764155441920,-1150.67714605,5.196e-05,2]
[394931399,1764155441930,-1150.67714605,5.196e-05,2]
[394931400,1764155441942,-1150.67714605,5.196e-05,2]
[394931401,1764155441952,-191.50518377,5.198e-05,2]
[394931402,1764155441963,-224.78638717,5.36e-05,2]
[394931403,1764155441973,-1683.807278,5.473e-05,2]
[394931404,1764155441983,-3993.1316174,5.473e-05,2]
[394931405,1764155441993,-621.44182024,5.479e-05,2]
[394931406,1764155442003,-300.0,5.581e-05,2]
[394931407,1764155442012,-300.0,5.581e-05,2]
[394931408,1764155442022,-300.0,5.581e-05,2]
[394931409,1764155442031,-300.0,5.581e-05,2]
[394931410,1764155442041,-736.9047906,5.721e-05,2]
[394931411,1764155442050,-1000.0,5.721e-05,2]
[394931412,1764155442060,-1683.807278,6.068e-05,2]
[394931413,1764155442069,-890.9880972,6.168e-05,2]
[394931414,1764155442079,-1500.0,6.268e-05,2]
[394931415,1764155442088,-198.8063168,6.323e-05,2]
[394931416,1764155442097,-1683.807278,6.664e-05,2]
[394931417,1764155442107,-2000.0,6.816e-05,2]
[394931418,1764155442116,-225.97611685,7.198e-05,2]
[394931419,1764155442125,-1683.807278,7.259e-05,2]
[394931420,1764155442134,-2500.0,7.364e-05,2]
[394931421,1764155442144,-371.98575784,7.912e-05,2]
[394931422,1764155442153,-635.858,7.938e-05,2]
[394931423,1764155442163,-995.328,7.938e-05,2]
[394931424,1764155442172,-2198.508,7.938e-05,2]
[394931425,1764155442182,-414.0,7.938e-05,2]
[394931426,1764155442191,-183.38448458,7.957e-05,2]
[394931427,1764155442203,-157.65155994,8.219e-05,2]
[394931428,1764155442213,-260.44704993,9.198e-05,2]
[394931429,1764155442222,-187.78006525,0.0001,2]
[394931430,1764155442231,-194.72792766,0.00010548,2]
[394931431,1764155442241,-734.50051512,0.00010823,2]
[394931432,1764155442250,-630.0,0.00010938,2]
[394931433,1764155442258,-990.0,0.00010938,2]
[394931434,1764155442267,-414.0,0.00010938,2]
[394931435,1764155442278,-500.0,0.00010958,2]
[394931436,1764155442288,-999.0,0.00010959,2]
[394931437,1764155442297,-500.0,0.00010959,2]
[394931438,1764155442306,-500.0,0.00010959,2]
[394931439,1764155442316,-500.0,0.00010959,2]
[394931440,1764155442325,-99.38971284,0.00010959,2]
[394931450,1764155444659,-400.61028716,0.00010959,2]
[394931451,1764155444669,-492.11289284,0.00010959,2]
[394931452,1764155444682,-7.88710716,0.00010959,2]
[394931453,1764155444692,-292.11289284,0.00010959,2]
[394931454,1764155445340,-207.88710716,0.00010959,2]
[394931455,1764155445350,-500.0,0.00010959,2]
[394931456,1764155445360,-322.51585836,0.00010959,2]
[394931462,1764155446757,-177.48414164,0.00010959,2]
[394931463,1764155446767,-500.0,0.00010959,2]
[394931464,1764155446778,-500.0,0.00010959,2]
[394931465,1764155446790,-197.1632808,0.00010959,2]
[394931472,1764155595837,3071.41705387,0.0001212,6]
[394931478,1764156514310,10000.0,0.0002,30]
[394931502,1764156631627,-300.0,5.138e-05,2]
[394931503,1764156631640,-300.0,5.138e-05,2]
[394931504,1764156631650,-300.0,5.138e-05,2]
[394931505,1764156631661,-300.0,5.138e-05,2]
[394931506,1764156631672,-184.75637219,5.139e-05,2]
[394931507,1764156631681,-166.17111947,5.139e-05,2]
[394931508,1764156631692,-631.47574935,5.139e-05,2]
[394931509,1764156631703,-548.54884319,5.139e-05,2]
[394931510,1764156631717,-293.45115681,5.139e-05,2]
[394931511,1764156631727,-87.12484494,5.14e-05,2]
[394931512,1764156631741,-412.87515506,5.14e-05,2]
[394931513,1764156631751,-500.0,5.14e-05,2]
[394931514,1764156631760,-500.0,5.14e-05,2]
[394931515,1764156631768,-500.0,5.14e-05,2]
[394931516,1764156631777,-500.0,5.14e-05,2]
[394931517,1764156631786,-500.0,5.14e-05,2]
[394931518,1764156631795,-500.0,5.14e-05,2]
[394931519,1764156631804,-500.0,5.14e-05,2]
[394931521,1764156631813,-500.0,5.14e-05,2]
[394931523,1764156631822,-433.41272798,5.14e-05,2]
[394931524,1764156631831,-500.0,5.14e-05,2]
[394931526,1764156631840,-500.0,5.14e-05,2]
[394931527,1764156631849,-500.0,5.14e-05,2]
[394931529,1764156631858,-500.0,5.14e-05,2]
[394931530,1764156631866,-500.0,5.14e-05,2]
[394931532,1764156631876,-500.0,5.14e-05,2]
[394931534,1764156631884,-500.0,5.14e-05,2]
[394931535,1764156631895,-500.0,5.14e-05,2]
[394931536,1764156631904,-443.99727382,5.14e-05,2]
[394931537,1764156631912,-500.0,5.14e-05,2]
[394931538,1764156631922,-500.0,5.14e-05,2]
[394931539,1764156631931,-500.0,5.14e-05,2]
[394931540,1764156631939,-500.0,5.14e-05,2]
[394931541,1764156631948,-500.0,5.14e-05,2]
[394931542,1764156631957,-500.0,5.14e-05,2]
[394931543,1764156631966,-500.0,5.14e-05,2]
[394931544,1764156631975,-500.0,5.14e-05,2]
[394931545,1764156631984,-500.0,5.14e-05,2]
[394931546,1764156631994,-500.0,5.14e-05,2]
[394931547,1764156632002,-229.1237033,5.14e-05,2]
[394931548,1764156632011,-500.0,5.14e-05,2]
[394931549,1764156632020,-500.0,5.14e-05,2]
[394931550,1764156632030,-500.0,5.14e-05,2]
[394931551,1764156632039,-500.0,5.14e-05,2]
[394931552,1764156632048,-500.0,5.14e-05,2]
[394931553,1764156632057,-500.0,5.14e-05,2]
[394931554,1764156632066,-500.0,5.14e-05,2]
[394931555,1764156632075,-500.0,5.14e-05,2]
[394931556,1764156632084,-500.0,5.14e-05,2]
[394931557,1764156632093,-500.0,5.14e-05,2]
[394931558,1764156632102,-300.0,5.652e-05,2]
[394931559,1764156632111,-319.0,5.652e-05,2]
[394931560,1764156632121,-218.01251919,7.139e-05,2]
[394931561,1764156632130,-251.26866618,9.139e-05,2]
[394931562,1764156632139,-183.476131,9.518e-05,2]
[394931563,1764156632148,-187.78006525,0.0001,2]
[394931564,1764156632157,-194.72792766,0.00010548,2]
[394931565,1764156632166,-999.0,0.00010959,2]
[394931566,1764156632175,-249.42190601,0.00010959,2]
[394931567,1764156632184,-201.93286099,0.00011096,2]
[394931568,1764156632194,-284.52481318,0.00011139,2]
[394931569,1764156632204,-1443.10154095,0.00011159,2]
[394931570,1764156632213,-500.0,0.00011159,2]
[394931571,1764156632222,-500.0,0.00011159,2]
[394931572,1764156632231,-500.0,0.00011159,2]
[394931573,1764156632240,-500.0,0.00011159,2]
[394931574,1764156632249,-500.0,0.00011159,2]
[394931575,1764156632258,-500.0,0.00011159,2]
[394931576,1764156632267,-500.0,0.00011159,2]
[394931577,1764156632276,-500.0,0.00011159,2]
[394931578,1764156632285,-500.0,0.00011159,2]
[394931579,1764156632295,-500.0,0.00011159,2]
[394931580,1764156632304,-500.0,0.00011159,2]
[394931581,1764156632313,-500.0,0.00011159,2]
[394931582,1764156632323,-500.0,0.00011159,2]
[394931583,1764156632332,-500.0,0.00011159,2]
[394931584,1764156632341,-500.0,0.00011159,2]
[394931585,1764156632350,-500.0,0.00011159,2]
[394931586,1764156632359,-500.0,0.00011159,2]
[394931587,1764156632369,-500.0,0.00011159,2]
[394931588,1764156632379,-500.0,0.00011159,2]
[394931589,1764156632388,-500.0,0.00011159,2]
[394931590,1764156632397,-500.0,0.00011159,2]
[394931591,1764156632406,-500.0,0.00011159,2]
[394931592,1764156632415,-500.0,0.00011159,2]
[394931593,1764156632424,-500.0,0.00011159,2]
[394931594,1764156632433,-500.0,0.00011159,2]
[394931595,1764156632443,-500.0,0.00011159,2]
[394931596,1764156632451,-500.0,0.00011159,2]
[394931597,1764156632461,-500.0,0.00011159,2]
[394931598,1764156632470,-500.0,0.00011159,2]
[394931599,1764156632480,-387.15763053,0.00011159,2]
[394931600,1764156632490,-209.40437684,0.00011644,2]
[394931601,1764156632501,-353.4974844,0.00012106,2]
[394931602,1764156632510,-512.42982884,0.00012122,2]
[394931603,1764156632519,-217.15233878,0.00012192,2]
[394931604,1764156632530,-631.23,0.00012329,2]
[394931605,1764156632541,-526.03,0.00012329,2]
[394931606,1764156632550,-438.35,0.00012329,2]
[394931607,1764156632559,-365.3,0.00012329,2]
[394931608,1764156632568,-304.41,0.00012329,2]
[394931609,1764156632578,-253.68,0.00012329,2]
[394931610,1764156632590,-211.4,0.00012329,2]
[394931611,1764156632599,-176.16,0.00012329,2]
[394931612,1764156632608,-880.85,0.00012329,2]
[394931613,1764156632617,-225.18697532,0.0001274,2]
[394931614,1764156632627,-692.0,0.00013089,2]
[394931615,1764156632636,-692.0,0.00013116,2]
[394931616,1764156632645,-317.78096017,0.00013139,2]
[394931617,1764156632654,-3578.9158048,0.00013188,2]
[394931618,1764156632666,-1590.35762497,0.00013188,2]
[394931622,1764156637673,-5000.0,0.00013188,2]
[394931634,1764156637838,-2521.307953,0.00013188,2]
[394931681,1764156639957,-69106.85418695,0.00013188,2]
[394931682,1764156639968,-81470.99949962,0.00013188,2]
[394931683,1764156640013,-440.45,0.00013188,2]
[394931726,1764156644266,-414.0,8.848e-05,2]
[394931727,1764156644275,-414.0,0.00011848,2]
[394931728,1764156644284,-363.98261601,0.00013056,2]
[394931729,1764156644293,-464.95134146,0.00013091,2]
[394931730,1764156644303,-726291.11493066,0.00013188,2]
[394931731,1764156644312,-783.65995794,0.00013191,2]
[394931732,1764156644321,-692.0,0.00013254,2]
[394931734,1764156644331,-203.4143621,0.00013288,2]
[394931735,1764156644340,-692.0,0.00013311,2]
[394931737,1764156644349,-692.0,0.0001332,2]
[394931739,1764156644358,-692.0,0.00013344,2]
[394931740,1764156644368,-692.0,0.00013357,2]
[394931741,1764156644378,-692.0,0.00013384,2]
[394931742,1764156644387,-692.0,0.00013431,2]
[394931743,1764156644397,-692.0,0.00013435,2]
[394931744,1764156644406,-50000.0,0.00013435,2]
[394931745,1764156644416,-692.0,0.00013496,2]
[394931746,1764156644426,-692.0,0.00013567,2]
[394931747,1764156644436,-692.0,0.00013568,2]
[394931748,1764156644445,-1010.79,0.00013698,2]
[394931749,1764156644455,-1010.79,0.00013698,2]
[394931750,1764156644465,-1010.79,0.00013698,2]
[394931751,1764156644474,-1010.79,0.00013698,2]
[394931752,1764156644484,-1010.79,0.00013698,2]
[394931753,1764156644494,-1010.79,0.00013698,2]
[394931754,1764156644503,-1010.79,0.00013698,2]
[394931755,1764156644512,-1010.79,0.00013698,2]
[394931756,1764156644521,-1010.79,0.00013698,2]
[394931757,1764156644532,-1010.79,0.00013698,2]
[394931758,1764156644542,-1010.79,0.00013698,2]
[394931759,1764156644552,-1010.79,0.00013698,2]
[394931760,1764156644561,-1010.79,0.00013698,2]
[394931761,1764156644571,-1010.79,0.00013698,2]
[394931762,1764156644581,-1010.79,0.00013698,2]
[394931763,1764156644593,-1010.79,0.00013698,2]
[394931764,1764156644603,-1010.79,0.00013698,2]
[394931765,1764156644612,-1010.79,0.00013698,2]
[394931766,1764156644622,-1010.79,0.00013698,2]
[394931767,1764156644631,-1010.79,0.00013698,2]
[394931768,1764156644641,-1010.79,0.00013698,2]
[394931769,1764156644650,-1010.79,0.00013698,2]
[394931770,1764156644659,-1010.79,0.00013698,2]
[394931771,1764156644670,-1010.8229322,0.00013698,2]
[394931772,1764156644680,-1000.0,0.00013699,2]
[394931773,1764156644689,-1500.0,0.00013699,2]
[394931774,1764156644698,-500.0,0.00013699,2]
[394931775,1764156644707,-500.0,0.00013699,2]
[394931776,1764156644716,-415.25666885,0.00013699,2]
[394931777,1764156644724,-158.23693159,0.00013699,2]
[394931778,1764156644734,-160.03817936,0.00013699,2]
[394931779,1764156644743,-500.0,0.00013699,2]
[394931780,1764156644752,-500.0,0.00013699,2]
[394931781,1764156644761,-500.0,0.00013699,2]
[394931782,1764156644771,-500.0,0.00013699,2]
[394931783,1764156644780,-532.77215586,0.00013699,2]
[394931784,1764156644789,-500.0,0.00013699,2]
[394931785,1764156644799,-500.0,0.00013699,2]
[394931786,1764156644808,-157.52926092,0.00013699,2]
[394931787,1764156644818,-500.0,0.00013699,2]
[394931788,1764156644827,-489.42445728,0.00013699,2]
[394931789,1764156644837,-500.0,0.00013699,2]
[394931790,1764156644847,-500.0,0.00013699,2]
[394931791,1764156644857,-172.73466699,0.00013699,2]
[394931792,1764156644867,-177.39374302,0.00013699,2]
[394931793,1764156644877,-500.0,0.00013699,2]
[394931794,1764156644887,-306.44290652,0.00013699,2]
[394931795,1764156644897,-160.0,0.00013699,2]
[394931796,1764156644908,-500.0,0.00013699,2]